[Event "Titled Tuesday Blitz February 14 Late 2023"]
[White "Yuan, Qingyu"]
[Black "Krishnan, Varun"]
[WhiteFideId "8609772"]
[BlackFideId "5054508"]
[WhiteElo "2373"]
[BlackElo "2341"]
[Result "0-1"]
[Round "06"]
[TimeControl "180+2"]
[Date "2023.02.14"]
[WhiteClock "0:00:02"]
[BlackClock "0:00:05"]

1. e4 {[%clk 0:03:00]}  e5 {[%clk 0:02:58]} 2. Nf3 {[%clk 0:03:01]}  Nc6 {[%clk 0:02:58]} 3. Bb5 {[%clk 0:03:01]}  Nf6 {[%clk 0:02:57]} 4. d3 {[%clk 0:03:00]}  Bc5 {[%clk 0:02:55]} 5. Bxc6 {[%clk 0:03:00]}  dxc6 {[%clk 0:02:55]} 6. Nbd2 {[%clk 0:03:01]}  Bd6 {[%clk 0:02:44]} 7. Nc4 {[%clk 0:02:59]}  Qe7 {[%clk 0:02:44]} 8. O-O {[%clk 0:02:49]}  Nd7 {[%clk 0:02:39]} 9. c3 {[%clk 0:02:38]}  c5 {[%clk 0:02:28]} 10. Ne3 {[%clk 0:02:15]}  Nb6 {[%clk 0:02:25]} 11. a3 {[%clk 0:01:52]}  a5 {[%clk 0:02:21]} 12. a4 {[%clk 0:01:52]}  Be6 {[%clk 0:02:20]} 13. b3 {[%clk 0:01:48]}  O-O-O {[%clk 0:02:15]} 14. Qc2 {[%clk 0:01:39]}  g6 {[%clk 0:02:15]} 15. Nc4 {[%clk 0:01:39]}  Nxc4 {[%clk 0:02:12]} 16. dxc4 {[%clk 0:01:22]}  f6 {[%clk 0:02:10]} 17. Be3 {[%clk 0:01:18]}  g5 {[%clk 0:02:08]} 18. Rfd1 {[%clk 0:00:56]}  h5 {[%clk 0:02:07]} 19. Ne1 {[%clk 0:00:19]}  g4 {[%clk 0:01:40]} 20. Rd2 {[%clk 0:00:17]}  h4 {[%clk 0:01:33]} 21. g3 {[%clk 0:00:15]}  Rdf8 {[%clk 0:01:16]} 22. Ng2 {[%clk 0:00:15]}  hxg3 {[%clk 0:01:13]} 23. fxg3 {[%clk 0:00:16]}  f5 {[%clk 0:01:11]} 24. Rf1 {[%clk 0:00:14]}  f4 {[%clk 0:00:51]} 25. gxf4 {[%clk 0:00:14]}  Qh7 {[%clk 0:00:50]} 26. f5 {[%clk 0:00:06]}  Qxh2+ {[%clk 0:00:40]} 27. Kf2 {[%clk 0:00:06]}  Rh3 {[%clk 0:00:32]} 28. Ke1 {[%clk 0:00:06]}  Be7 {[%clk 0:00:31]} 29. Kd1 {[%clk 0:00:06]}  Rf3 {[%clk 0:00:25]} 30. Rdf2 {[%clk 0:00:05]}  Bf7 {[%clk 0:00:17]} 31. Kc1 {[%clk 0:00:04]}  Rd8 {[%clk 0:00:15]} 32. Rxf3 {[%clk 0:00:04]}  gxf3 {[%clk 0:00:15]} 33. Rxf3 {[%clk 0:00:05]}  Bh5 {[%clk 0:00:12]} 34. Rf1 {[%clk 0:00:05]}  Rg8 {[%clk 0:00:06]} 35. Ne1 {[%clk 0:00:05]}  Qh3 {[%clk 0:00:06]} 36. Qf2 {[%clk 0:00:04]}  Bh4 {[%clk 0:00:03]} 37. Rg1 {[%clk 0:00:02]}  Bxf2 {[%clk 0:00:03]} 38. Rxg8+ {[%clk 0:00:02]}  Kd7 {[%clk 0:00:03]} 39. Bxf2 {[%clk 0:00:02]}  Qxc3+ {[%clk 0:00:03]} 40. Nc2 {[%clk 0:00:03]}  Be2 {[%clk 0:00:03]} 41. Rg3 {[%clk 0:00:03]}  Bd3 {[%clk 0:00:03]} 42. Rxd3+ {[%clk 0:00:02]}  Qxd3 {[%clk 0:00:04]} 43. Kb2 {[%clk 0:00:02]}  Qxe4 {[%clk 0:00:04]} 44. Bxc5 {[%clk 0:00:02]}  Qxf5 {[%clk 0:00:04]} 45. Be3 {[%clk 0:00:02]}  Qd3 {[%clk 0:00:04]} 46. Bf2 {[%clk 0:00:02]}  e4 {[%clk 0:00:04]} 47. Be3 {[%clk 0:00:03]}  b6 {[%clk 0:00:05]} 48. Bf4 {[%clk 0:00:03]}  c5 {[%clk 0:00:05]} 49. Be3 {[%clk 0:00:03]}  Qe2 {[%clk 0:00:06]} 50. Bf4 {[%clk 0:00:03]}  Qf3 {[%clk 0:00:06]} 51. Be3 {[%clk 0:00:04]}  Ke6 {[%clk 0:00:07]} 52. Kc3 {[%clk 0:00:04]}  Kf7 {[%clk 0:00:08]} 53. Kb2 {[%clk 0:00:05]}  Ke8 {[%clk 0:00:08]} 54. Bd2 {[%clk 0:00:05]}  Kd8 {[%clk 0:00:09]} 55. Bg5+ {[%clk 0:00:04]}  Kc7 {[%clk 0:00:09]} 56. Be3 {[%clk 0:00:05]}  Qe2 {[%clk 0:00:09]} 57. Bf4+ {[%clk 0:00:05]}  Kd7 {[%clk 0:00:07]} 58. Be3 {[%clk 0:00:05]}  Ke6 {[%clk 0:00:07]} 59. Bc1 {[%clk 0:00:05]}  Kf5 {[%clk 0:00:06]} 60. Kc3 {[%clk 0:00:04]}  Qd3+ {[%clk 0:00:05]} 61. Kb2 {[%clk 0:00:04]}  Kg4 {[%clk 0:00:05]} 62. Ne3+ {[%clk 0:00:05]}  Kf3 {[%clk 0:00:04]} 63. Nc2 {[%clk 0:00:06]}  Ke2 {[%clk 0:00:04]} 64. Bf4 {[%clk 0:00:05]}  Qd7 {[%clk 0:00:02]} 65. Be5 {[%clk 0:00:05]}  Qf7 {[%clk 0:00:02]} 66. Bc3 {[%clk 0:00:02]}  e3 {[%clk 0:00:01]} 67. Kc1 {[%clk 0:00:03]}  Kd3 {[%clk 0:00:02]} 68. Kb2 {[%clk 0:00:02]}  e2 {[%clk 0:00:03]} 69. Ne1+ {[%clk 0:00:02]}  Ke3 {[%clk 0:00:03]} 70. Kc2 {[%clk 0:00:03]}  Kf2 {[%clk 0:00:04]} 71. Nd3+ {[%clk 0:00:03]}  Kf1 {[%clk 0:00:03]} 72. Ne1 {[%clk 0:00:03]}  Qf2 {[%clk 0:00:03]} 73. Nd3 {[%clk 0:00:02]}  Qe3 {[%clk 0:00:03]} 74. Ne1 {[%clk 0:00:02]}  Qxc3+ {[%clk 0:00:03]} 75. Kxc3 {[%clk 0:00:02]}  Kxe1 {[%clk 0:00:04]} 76. Kd3 {[%clk 0:00:02]}  Kf2 {[%clk 0:00:05]} 0-1


[Site "https://www.chess.com"]

[Event "Titled Tuesday Blitz February 14 Late 2023"]
[White "Martynov, Pavel"]
[Black "Yoo, Christopher Woojin"]
[WhiteFideId "4101260"]
[BlackFideId "30909694"]
[WhiteElo "2414"]
[BlackElo "2607"]
[Result "0-1"]
[Round "06"]
[TimeControl "180+2"]
[Date "2023.02.14"]
[WhiteClock "0:00:14"]
[BlackClock "0:00:45"]

1. e4 {[%clk 0:03:00]}  c5 {[%clk 0:02:56]} 2. Nf3 {[%clk 0:03:01]}  d6 {[%clk 0:02:57]} 3. Bb5+ {[%clk 0:03:01]}  Nd7 {[%clk 0:02:56]} 4. O-O {[%clk 0:03:00]}  a6 {[%clk 0:02:57]} 5. Bxd7+ {[%clk 0:03:00]}  Bxd7 {[%clk 0:02:58]} 6. c3 {[%clk 0:03:00]}  Nf6 {[%clk 0:02:58]} 7. Re1 {[%clk 0:03:00]}  g6 {[%clk 0:02:44]} 8. d4 {[%clk 0:03:01]}  cxd4 {[%clk 0:02:44]} 9. cxd4 {[%clk 0:03:02]}  Bg7 {[%clk 0:02:43]} 10. Nc3 {[%clk 0:03:02]}  Bg4 {[%clk 0:02:07]} 11. h3 {[%clk 0:03:00]}  Bxf3 {[%clk 0:02:06]} 12. Qxf3 {[%clk 0:03:01]}  Nd7 {[%clk 0:02:06]} 13. Be3 {[%clk 0:02:51]}  O-O {[%clk 0:02:06]} 14. Rad1 {[%clk 0:02:51]}  e6 {[%clk 0:02:06]} 15. Qg3 {[%clk 0:02:46]}  Qb6 {[%clk 0:01:52]} 16. d5 {[%clk 0:02:18]}  Qxb2 {[%clk 0:01:48]} 17. Na4 {[%clk 0:01:48]}  Qxa2 {[%clk 0:01:44]} 18. dxe6 {[%clk 0:01:44]}  Qxa4 {[%clk 0:01:42]} 19. exd7 {[%clk 0:01:41]}  Qxd7 {[%clk 0:01:43]} 20. e5 {[%clk 0:01:34]}  d5 {[%clk 0:01:41]} 21. Bc5 {[%clk 0:01:34]}  Rfe8 {[%clk 0:01:40]} 22. Bd6 {[%clk 0:01:34]}  a5 {[%clk 0:01:40]} 23. Rxd5 {[%clk 0:01:33]}  a4 {[%clk 0:01:40]} 24. Rb1 {[%clk 0:01:28]}  a3 {[%clk 0:01:34]} 25. Ra1 {[%clk 0:01:10]}  Qe6 {[%clk 0:01:17]} 26. Rb5 {[%clk 0:01:03]}  a2 {[%clk 0:01:06]} 27. Qd3 {[%clk 0:00:29]}  Ra6 {[%clk 0:00:56]} 28. Rd5 {[%clk 0:00:24]}  Rd8 {[%clk 0:00:49]} 29. Kh2 {[%clk 0:00:14]}  Raxd6 {[%clk 0:00:45]} 30. exd6 {[%clk 0:00:14]}  Bxa1 {[%clk 0:00:45]} 0-1


[Site "https://www.chess.com"]

[Event "Titled Tuesday Blitz February 14 Late 2023"]
[White "AyMitecK"]
[Black "Ibarra Jerez, Jose Carlos"]
[BlackFideId "2226332"]
[WhiteElo "2577"]
[BlackElo "2563"]
[Result "0-1"]
[Round "06"]
[TimeControl "180+2"]
[Date "2023.02.14"]
[WhiteClock "0:00:03"]
[BlackClock "0:00:09"]

1. e4 {[%clk 0:03:00]}  c5 {[%clk 0:03:00]} 2. Nf3 {[%clk 0:03:00]}  e6 {[%clk 0:03:00]} 3. b3 {[%clk 0:02:57]}  b6 {[%clk 0:02:57]} 4. Bb2 {[%clk 0:02:57]}  Bb7 {[%clk 0:02:58]} 5. d3 {[%clk 0:02:58]}  d5 {[%clk 0:02:56]} 6. exd5 {[%clk 0:02:57]}  exd5 {[%clk 0:02:56]} 7. Nbd2 {[%clk 0:02:56]}  d4 {[%clk 0:02:56]} 8. Be2 {[%clk 0:02:55]}  Nf6 {[%clk 0:02:56]} 9. O-O {[%clk 0:02:55]}  Be7 {[%clk 0:02:57]} 10. Re1 {[%clk 0:02:55]}  O-O {[%clk 0:02:57]} 11. b4 {[%clk 0:02:55]}  Nc6 {[%clk 0:02:49]} 12. bxc5 {[%clk 0:02:54]}  bxc5 {[%clk 0:02:50]} 13. c3 {[%clk 0:02:54]}  dxc3 {[%clk 0:02:46]} 14. Bxc3 {[%clk 0:02:54]}  Nd5 {[%clk 0:02:46]} 15. Bb2 {[%clk 0:02:48]}  Nf4 {[%clk 0:02:45]} 16. Ne4 {[%clk 0:02:46]}  Nb4 {[%clk 0:02:42]} 17. Ne5 {[%clk 0:02:35]}  f6 {[%clk 0:02:33]} 18. Qb3+ {[%clk 0:02:24]}  Bd5 {[%clk 0:02:32]} 19. Nc4 {[%clk 0:02:23]}  Rb8 {[%clk 0:02:28]} 20. Qc3 {[%clk 0:02:17]}  Qd7 {[%clk 0:02:06]} 21. a3 {[%clk 0:02:07]}  Nc6 {[%clk 0:02:06]} 22. Bf1 {[%clk 0:02:02]}  Nd4 {[%clk 0:02:04]} 23. Rab1 {[%clk 0:01:54]}  Qg4 {[%clk 0:01:20]} 24. Kh1 {[%clk 0:01:54]}  Rb3 {[%clk 0:01:13]} 25. Ne3 {[%clk 0:01:36]}  Qd7 {[%clk 0:00:56]} 26. Qc1 {[%clk 0:01:25]}  Rfb8 {[%clk 0:00:37]} 27. Nxc5 {[%clk 0:01:16]}  Bxc5 {[%clk 0:00:35]} 28. Qxc5 {[%clk 0:01:16]}  Nde6 {[%clk 0:00:32]} 29. Qc2 {[%clk 0:01:06]}  Qc6 {[%clk 0:00:30]} 30. Qxc6 {[%clk 0:00:57]}  Bxc6 {[%clk 0:00:30]} 31. Rbc1 {[%clk 0:00:57]}  Bxg2+ {[%clk 0:00:22]} 32. Nxg2 {[%clk 0:00:56]}  Rxb2 {[%clk 0:00:23]} 33. d4 {[%clk 0:00:54]}  Nxg2 {[%clk 0:00:15]} 34. Rxe6 {[%clk 0:00:46]}  Nf4 {[%clk 0:00:15]} 35. Re7 {[%clk 0:00:43]}  Rxf2 {[%clk 0:00:15]} 36. Bc4+ {[%clk 0:00:43]}  Kh8 {[%clk 0:00:13]} 37. Rce1 {[%clk 0:00:40]}  h5 {[%clk 0:00:13]} 38. Rg1 {[%clk 0:00:37]}  g5 {[%clk 0:00:10]} 39. Rxa7 {[%clk 0:00:35]}  Rbb2 {[%clk 0:00:10]} 40. Ra8+ {[%clk 0:00:12]}  Kg7 {[%clk 0:00:09]} 41. Ra7+ {[%clk 0:00:12]}  Kh6 {[%clk 0:00:09]} 42. Be2 {[%clk 0:00:05]}  Rbxe2 {[%clk 0:00:08]} 43. Rb1 {[%clk 0:00:01]}  Rxh2+ {[%clk 0:00:07]} 44. Kg1 {[%clk 0:00:02]}  Reg2+ {[%clk 0:00:08]} 45. Kf1 {[%clk 0:00:03]}  Rh1# {[%clk 0:00:09]} 0-1


[Site "https://www.chess.com"]

[Event "Titled Tuesday Blitz February 14 Late 2023"]
[White "Tanenbaum, Zachary"]
[Black "Ibadov, Dashgyn"]
[WhiteFideId "2060850"]
[BlackFideId "24107514"]
[WhiteElo "2261"]
[BlackElo "2391"]
[Result "0-1"]
[Round "06"]
[TimeControl "180+2"]
[Date "2023.02.14"]
[WhiteClock "0:00:06"]
[BlackClock "0:00:55"]

1. e4 {[%clk 0:03:00]}  e5 {[%clk 0:02:58]} 2. Nf3 {[%clk 0:03:01]}  Nc6 {[%clk 0:02:59]} 3. Bc4 {[%clk 0:03:01]}  Bc5 {[%clk 0:02:58]} 4. c3 {[%clk 0:03:00]}  Nf6 {[%clk 0:02:58]} 5. d4 {[%clk 0:03:01]}  exd4 {[%clk 0:02:59]} 6. b4 {[%clk 0:03:01]}  Be7 {[%clk 0:02:58]} 7. b5 {[%clk 0:03:01]}  Na5 {[%clk 0:02:57]} 8. Bd3 {[%clk 0:03:01]}  d5 {[%clk 0:02:56]} 9. e5 {[%clk 0:03:01]}  Ne4 {[%clk 0:02:56]} 10. cxd4 {[%clk 0:03:02]}  O-O {[%clk 0:02:55]} 11. O-O {[%clk 0:03:01]}  Bf5 {[%clk 0:02:52]} 12. Bb2 {[%clk 0:02:51]}  c6 {[%clk 0:02:44]} 13. a4 {[%clk 0:02:44]}  cxb5 {[%clk 0:02:39]} 14. axb5 {[%clk 0:02:45]}  Nc4 {[%clk 0:02:38]} 15. Bxc4 {[%clk 0:02:31]}  dxc4 {[%clk 0:02:39]} 16. d5 {[%clk 0:02:21]}  Bc5 {[%clk 0:02:38]} 17. Nc3 {[%clk 0:02:13]}  Nxc3 {[%clk 0:02:30]} 18. Bxc3 {[%clk 0:02:14]}  Bd3 {[%clk 0:02:30]} 19. d6 {[%clk 0:01:58]}  Bxf1 {[%clk 0:02:30]} 20. Kxf1 {[%clk 0:01:59]}  Qb6 {[%clk 0:02:26]} 21. Qd5 {[%clk 0:01:52]}  Rae8 {[%clk 0:02:06]} 22. Ng5 {[%clk 0:01:29]}  Bxf2 {[%clk 0:01:48]} 23. e6 {[%clk 0:00:25]}  fxe6 {[%clk 0:01:41]} 24. Nxe6 {[%clk 0:00:25]}  Bg1+ {[%clk 0:01:03]} 25. Nxf8+ {[%clk 0:00:25]}  Kxf8 {[%clk 0:01:04]} 26. Ra2 {[%clk 0:00:07]}  Bxh2 {[%clk 0:00:57]} 27. d7 {[%clk 0:00:06]}  Qg1# {[%clk 0:00:55]} 0-1


[Site "https://www.chess.com"]

[Event "Titled Tuesday Blitz February 14 Late 2023"]
[White "Chor, Kevin"]
[Black "Perske, Thore"]
[WhiteFideId "2090740"]
[BlackFideId "12902195"]
[WhiteElo "1944"]
[BlackElo "2448"]
[Result "0-1"]
[Round "06"]
[TimeControl "180+2"]
[Date "2023.02.14"]
[WhiteClock "0:00:08"]
[BlackClock "0:01:18"]

1. e4 {[%clk 0:03:00]}  e6 {[%clk 0:03:00]} 2. d4 {[%clk 0:03:00]}  d5 {[%clk 0:03:00]} 3. Nd2 {[%clk 0:03:00]}  c5 {[%clk 0:03:00]} 4. exd5 {[%clk 0:02:59]}  exd5 {[%clk 0:03:01]} 5. Ngf3 {[%clk 0:02:59]}  a6 {[%clk 0:03:01]} 6. Be2 {[%clk 0:02:54]}  Nf6 {[%clk 0:03:01]} 7. O-O {[%clk 0:02:53]}  Be7 {[%clk 0:03:02]} 8. dxc5 {[%clk 0:02:51]}  Bxc5 {[%clk 0:03:03]} 9. Nb3 {[%clk 0:02:50]}  Bb6 {[%clk 0:03:03]} 10. c4 {[%clk 0:02:43]}  O-O {[%clk 0:03:03]} 11. c5 {[%clk 0:02:30]}  Bc7 {[%clk 0:03:01]} 12. Bg5 {[%clk 0:02:30]}  h6 {[%clk 0:03:00]} 13. Bxf6 {[%clk 0:02:26]}  Qxf6 {[%clk 0:03:00]} 14. Qxd5 {[%clk 0:02:26]}  Qxb2 {[%clk 0:02:59]} 15. Bd3 {[%clk 0:02:21]}  Nc6 {[%clk 0:02:51]} 16. Qe4 {[%clk 0:02:09]}  g6 {[%clk 0:02:51]} 17. Bc4 {[%clk 0:02:06]}  Qf6 {[%clk 0:02:37]} 18. Rad1 {[%clk 0:01:53]}  Bf5 {[%clk 0:02:36]} 19. Qh4 {[%clk 0:01:53]}  g5 {[%clk 0:02:23]} 20. Qh5 {[%clk 0:01:46]}  Rad8 {[%clk 0:02:18]} 21. Bd5 {[%clk 0:01:34]}  Kg7 {[%clk 0:02:07]} 22. Bxc6 {[%clk 0:01:20]}  bxc6 {[%clk 0:02:08]} 23. Nfd4 {[%clk 0:01:13]}  Be4 {[%clk 0:01:55]} 24. f3 {[%clk 0:01:01]}  Bg6 {[%clk 0:01:36]} 25. Qh3 {[%clk 0:00:58]}  Rd5 {[%clk 0:01:30]} 26. f4 {[%clk 0:00:32]}  gxf4 {[%clk 0:01:24]} 27. Qc3 {[%clk 0:00:20]}  Be5 {[%clk 0:01:20]} 28. Qa1 {[%clk 0:00:08]}  Rfd8 {[%clk 0:01:18]} 0-1


[Site "https://www.chess.com"]

[Event "Titled Tuesday Blitz February 14 Late 2023"]
[White "Brilej, Jaka"]
[Black "Costachi, Mihnea"]
[WhiteFideId "14618818"]
[BlackFideId "1217518"]
[WhiteElo "2321"]
[BlackElo "2476"]
[Result "0-1"]
[Round "06"]
[TimeControl "180+2"]
[Date "2023.02.14"]
[WhiteClock "0:01:34"]
[BlackClock "0:02:37"]

1. d4 {[%clk 0:02:58]}  d5 {[%clk 0:02:59]} 2. c4 {[%clk 0:02:57]}  dxc4 {[%clk 0:03:00]} 3. e4 {[%clk 0:02:54]}  e5 {[%clk 0:02:59]} 4. Nf3 {[%clk 0:02:48]}  exd4 {[%clk 0:02:59]} 5. Qxd4 {[%clk 0:02:46]}  Qxd4 {[%clk 0:02:57]} 6. Nxd4 {[%clk 0:02:47]}  Bb4+ {[%clk 0:02:54]} 7. Bd2 {[%clk 0:02:45]}  Bxd2+ {[%clk 0:02:53]} 8. Nxd2 {[%clk 0:02:46]}  Nf6 {[%clk 0:02:49]} 9. Bxc4 {[%clk 0:02:45]}  O-O {[%clk 0:02:49]} 10. O-O-O {[%clk 0:02:36]}  Rd8 {[%clk 0:02:48]} 11. Nb5 {[%clk 0:02:29]}  Na6 {[%clk 0:02:48]} 12. e5 {[%clk 0:01:59]}  Ng4 {[%clk 0:02:46]} 13. Ne4 {[%clk 0:01:57]}  Bf5 {[%clk 0:02:42]} 14. Ng5 {[%clk 0:01:46]}  Nxe5 {[%clk 0:02:40]} 15. Bb3 {[%clk 0:01:41]}  h6 {[%clk 0:02:39]} 16. Nf3 {[%clk 0:01:34]}  Nd3+ {[%clk 0:02:37]} 0-1


[Site "https://www.chess.com"]

[Event "Titled Tuesday Blitz February 14 Late 2023"]
[White "Prem, Pranav"]
[Black "Salimova, Nurgyul"]
[WhiteFideId "30901057"]
[BlackFideId "2915138"]
[WhiteElo "2061"]
[BlackElo "2391"]
[Result "0-1"]
[Round "06"]
[TimeControl "180+2"]
[Date "2023.02.14"]
[WhiteClock "0:00:03"]
[BlackClock "0:00:10"]

1. d4 {[%clk 0:03:00]}  g6 {[%clk 0:02:58]} 2. c4 {[%clk 0:03:01]}  Bg7 {[%clk 0:02:58]} 3. e4 {[%clk 0:02:55]}  Nc6 {[%clk 0:02:56]} 4. Nf3 {[%clk 0:02:50]}  d6 {[%clk 0:02:56]} 5. Nc3 {[%clk 0:02:48]}  Bg4 {[%clk 0:02:55]} 6. Be3 {[%clk 0:02:47]}  e5 {[%clk 0:02:53]} 7. d5 {[%clk 0:02:45]}  Nd4 {[%clk 0:02:52]} 8. Be2 {[%clk 0:02:45]}  Bxf3 {[%clk 0:02:25]} 9. Bxf3 {[%clk 0:02:43]}  c5 {[%clk 0:02:25]} 10. O-O {[%clk 0:02:35]}  Ne7 {[%clk 0:02:24]} 11. Be2 {[%clk 0:02:28]}  O-O {[%clk 0:02:23]} 12. a3 {[%clk 0:02:25]}  a5 {[%clk 0:02:10]} 13. Rb1 {[%clk 0:02:21]}  f5 {[%clk 0:01:58]} 14. f3 {[%clk 0:02:19]}  b6 {[%clk 0:01:24]} 15. b4 {[%clk 0:02:10]}  axb4 {[%clk 0:01:25]} 16. axb4 {[%clk 0:02:11]}  Ra3 {[%clk 0:01:25]} 17. Bd2 {[%clk 0:02:03]}  h5 {[%clk 0:01:10]} 18. exf5 {[%clk 0:01:51]}  gxf5 {[%clk 0:01:06]} 19. bxc5 {[%clk 0:01:50]}  bxc5 {[%clk 0:01:06]} 20. Nb5 {[%clk 0:01:35]}  Ra2 {[%clk 0:00:57]} 21. Bd3 {[%clk 0:01:27]}  h4 {[%clk 0:00:37]} 22. Bg5 {[%clk 0:01:06]}  h3 {[%clk 0:00:37]} 23. gxh3 {[%clk 0:00:57]}  Bf6 {[%clk 0:00:36]} 24. Bh6 {[%clk 0:00:53]}  Rf7 {[%clk 0:00:35]} 25. Nxd4 {[%clk 0:00:46]}  cxd4 {[%clk 0:00:36]} 26. Kh1 {[%clk 0:00:46]}  Kh7 {[%clk 0:00:36]} 27. Qc1 {[%clk 0:00:38]}  Bh4 {[%clk 0:00:17]} 28. Rb7 {[%clk 0:00:33]}  Qe8 {[%clk 0:00:14]} 29. Rg1 {[%clk 0:00:17]}  Ng6 {[%clk 0:00:14]} 30. Rxf7+ {[%clk 0:00:13]}  Qxf7 {[%clk 0:00:15]} 31. Bg5 {[%clk 0:00:13]}  Bf2 {[%clk 0:00:11]} 32. Rg2 {[%clk 0:00:13]}  e4 {[%clk 0:00:06]} 33. fxe4 {[%clk 0:00:12]}  Ne5 {[%clk 0:00:07]} 34. Bb1 {[%clk 0:00:07]}  Re2 {[%clk 0:00:07]} 35. exf5 {[%clk 0:00:07]}  Re1+ {[%clk 0:00:07]} 36. Qxe1 {[%clk 0:00:07]}  Bxe1 {[%clk 0:00:08]} 37. f6+ {[%clk 0:00:06]}  d3 {[%clk 0:00:09]} 38. Bh4 {[%clk 0:00:04]}  Bxh4 {[%clk 0:00:08]} 39. Rg7+ {[%clk 0:00:04]}  Qxg7 {[%clk 0:00:09]} 40. fxg7 {[%clk 0:00:05]}  Kxg7 {[%clk 0:00:10]} 41. c5 {[%clk 0:00:04]}  dxc5 {[%clk 0:00:09]} 42. d6 {[%clk 0:00:04]}  c4 {[%clk 0:00:09]} 43. Kg1 {[%clk 0:00:03]}  c3 {[%clk 0:00:10]} 0-1


[Site "https://www.chess.com"]

[Event "Titled Tuesday Blitz February 14 Late 2023"]
[White "Defend, Balint"]
[Black "Korchmar, Vasiliy"]
[WhiteFideId "17004853"]
[BlackFideId "24131750"]
[WhiteElo "1673"]
[BlackElo "2438"]
[Result "0-1"]
[Round "06"]
[TimeControl "180+2"]
[Date "2023.02.14"]
[WhiteClock "0:00:01"]
[BlackClock "0:00:10"]

1. e4 {[%clk 0:03:00]}  c5 {[%clk 0:03:00]} 2. Nf3 {[%clk 0:02:59]}  d6 {[%clk 0:03:00]} 3. Bb5+ {[%clk 0:02:59]}  Nd7 {[%clk 0:03:00]} 4. Ba4 {[%clk 0:02:59]}  Nf6 {[%clk 0:02:59]} 5. O-O {[%clk 0:02:58]}  Nxe4 {[%clk 0:02:57]} 6. Re1 {[%clk 0:02:55]}  Nf6 {[%clk 0:02:54]} 7. d4 {[%clk 0:02:55]}  e6 {[%clk 0:02:41]} 8. d5 {[%clk 0:02:42]}  e5 {[%clk 0:02:41]} 9. Nxe5 {[%clk 0:02:42]}  Be7 {[%clk 0:02:41]} 10. Nf3 {[%clk 0:02:27]}  O-O {[%clk 0:02:40]} 11. Bxd7 {[%clk 0:02:16]}  Bxd7 {[%clk 0:02:39]} 12. h3 {[%clk 0:02:16]}  Bf5 {[%clk 0:02:32]} 13. c4 {[%clk 0:02:12]}  Ne4 {[%clk 0:02:27]} 14. Nbd2 {[%clk 0:02:08]}  Nxd2 {[%clk 0:02:24]} 15. Bxd2 {[%clk 0:02:09]}  Bf6 {[%clk 0:02:23]} 16. Qc1 {[%clk 0:02:08]}  a6 {[%clk 0:01:29]} 17. a4 {[%clk 0:01:58]}  b5 {[%clk 0:01:29]} 18. Bc3 {[%clk 0:01:47]}  bxc4 {[%clk 0:01:25]} 19. Bxf6 {[%clk 0:01:42]}  Qxf6 {[%clk 0:01:25]} 20. Nd2 {[%clk 0:01:42]}  Bd3 {[%clk 0:01:24]} 21. Nxc4 {[%clk 0:01:25]}  Bxc4 {[%clk 0:01:25]} 22. Qxc4 {[%clk 0:01:26]}  Qxb2 {[%clk 0:01:25]} 23. Rab1 {[%clk 0:01:24]}  Qf6 {[%clk 0:01:23]} 24. Rb6 {[%clk 0:01:21]}  a5 {[%clk 0:01:23]} 25. Reb1 {[%clk 0:01:19]}  Rfe8 {[%clk 0:01:18]} 26. Qb5 {[%clk 0:00:48]}  h5 {[%clk 0:01:09]} 27. Qc6 {[%clk 0:00:47]}  Rad8 {[%clk 0:01:04]} 28. Qb5 {[%clk 0:00:34]}  Re5 {[%clk 0:00:54]} 29. Qxa5 {[%clk 0:00:27]}  Rxd5 {[%clk 0:00:53]} 30. Rb7 {[%clk 0:00:24]}  h4 {[%clk 0:00:41]} 31. Qb5 {[%clk 0:00:19]}  Rg5 {[%clk 0:00:37]} 32. Qc6 {[%clk 0:00:18]}  Rf5 {[%clk 0:00:28]} 33. Qe4 {[%clk 0:00:17]}  Rf4 {[%clk 0:00:27]} 34. Qd3 {[%clk 0:00:16]}  Rxa4 {[%clk 0:00:26]} 35. Rb8 {[%clk 0:00:16]}  Ra8 {[%clk 0:00:20]} 36. Rxa8 {[%clk 0:00:15]}  Rxa8 {[%clk 0:00:21]} 37. Qe4 {[%clk 0:00:14]}  Rd8 {[%clk 0:00:20]} 38. Rd1 {[%clk 0:00:14]}  g6 {[%clk 0:00:20]} 39. Rd5 {[%clk 0:00:12]}  Kg7 {[%clk 0:00:20]} 40. Qd3 {[%clk 0:00:12]}  Re8 {[%clk 0:00:17]} 41. g3 {[%clk 0:00:04]}  hxg3 {[%clk 0:00:16]} 42. Qxg3 {[%clk 0:00:05]}  Re6 {[%clk 0:00:15]} 43. Qd3 {[%clk 0:00:04]}  Re1+ {[%clk 0:00:12]} 44. Kg2 {[%clk 0:00:04]}  Re6 {[%clk 0:00:12]} 45. Qg3 {[%clk 0:00:04]}  c4 {[%clk 0:00:10]} 46. Qa3 {[%clk 0:00:03]}  c3 {[%clk 0:00:10]} 47. Qb3 {[%clk 0:00:01]}  Re2 {[%clk 0:00:10]} 0-1


[Site "https://www.chess.com"]

[Event "Titled Tuesday Blitz February 14 Late 2023"]
[White "Manukyan, Artyom"]
[Black "Boyer, Mahel"]
[WhiteFideId "13305786"]
[BlackFideId "45102422"]
[WhiteElo "2110"]
[BlackElo "2489"]
[Result "0-1"]
[Round "06"]
[TimeControl "180+2"]
[Date "2023.02.14"]
[WhiteClock "0:00:11"]
[BlackClock "0:02:16"]

1. e4 {[%clk 0:03:00]}  Nc6 {[%clk 0:02:59]} 2. Nf3 {[%clk 0:03:00]}  d5 {[%clk 0:03:00]} 3. exd5 {[%clk 0:03:01]}  Qxd5 {[%clk 0:02:58]} 4. Nc3 {[%clk 0:03:02]}  Qh5 {[%clk 0:02:59]} 5. Be2 {[%clk 0:02:54]}  Bg4 {[%clk 0:02:59]} 6. h3 {[%clk 0:02:54]}  O-O-O {[%clk 0:02:58]} 7. O-O {[%clk 0:02:50]}  Bxh3 {[%clk 0:02:57]} 8. gxh3 {[%clk 0:02:51]}  Qxh3 {[%clk 0:02:58]} 9. Nh2 {[%clk 0:02:49]}  e6 {[%clk 0:02:54]} 10. d3 {[%clk 0:02:45]}  Nf6 {[%clk 0:02:51]} 11. Bf4 {[%clk 0:02:36]}  g5 {[%clk 0:02:50]} 12. Bg3 {[%clk 0:02:15]}  h5 {[%clk 0:02:50]} 13. Nb5 {[%clk 0:01:49]}  a6 {[%clk 0:02:25]} 14. Bxc7 {[%clk 0:01:28]}  axb5 {[%clk 0:02:22]} 15. Bxd8 {[%clk 0:01:22]}  Ng4 {[%clk 0:02:17]} 16. Nf3 {[%clk 0:00:11]}  Nd4 {[%clk 0:02:16]} 0-1


[Site "https://www.chess.com"]